[Event "23rd Pirc Memorial Juniors 202"]
[Site "Maribor"]
[Date "2020.08.14"]
[Round "6.1"]
[White "Drevensek, Gasper"]
[Black "Kodric, Gasper"]
[Result "1/2-1/2"]
[ECO "B12"]
[WhiteElo "1446"]
[BlackElo "1624"]
[Annotator "NA RC"]
[PlyCount "135"]
[EventDate "2020.08.12"]
[EventType "tourn"]
[EventCountry "SLO"]
[SourceTitle "playchess.com"]
[Source "ChessBase"]
[SourceQuality "1"]
[TimeControl "3600+30"]

1. e4 {[%emt 0:00:00]} c6 {[%emt 0:00:00]} 2. d4 {[%emt 0:00:00]} d5 {[%emt 0:00:00]} 3. e5 {[%emt 0:00:00]} c5 {[%emt 0:00:00]} 4. dxc5 {[%emt 0:00:27]} e6 {[%emt 0:00:00]} 5. Be3 {[%emt 0:00:23]} Nd7 {[%emt 0:00:00]} 6. Bb5 {[%emt 0:00:09]} Ne7 {[%emt 0:00:04]} 7. c3 {[%emt 0:08:03]} a6 {[%emt 0:00:26]} 8. Bxd7+ {[%emt 0:00:13]} Bxd7 {[%emt 0:00:06]} 9. b4 {[%emt 0:00:12]} Nf5 {[%emt 0:01:20]} 10. Bd4 {[%emt 0:02:30]} Nxd4 {[%emt 0:02:15]} 11. cxd4 {[%emt 0:00:25]} a5 {[%emt 0:02:36]} 12. Qb3 {[%emt 0:02:58]} axb4 {[%emt 0:00:34]} 13. Qxb4 {[%emt 0:01:05]} Ra4 {[%emt 0:00:36]} 14. Qd2 {[%emt 0:04:15]} b6 {[%emt 0:03:05]} 15. Nc3 {[%emt 0:01:20]} Ra3 {[%emt 0:01:30]} 16. cxb6 {[%emt 0:01:23]} Qxb6 {[%emt 0:10:20]} 17. Nge2 {[%emt 0:00:49]} Bb4 {[%emt 0:02:43]} 18. O-O {[%emt 0:01:38]} Bb5 {[%emt 0:02:47]} 19. Qb2 {[%emt 0:00:56]} Rxc3 {[%emt 0:08:39]} 20. Nxc3 {[%emt 0:01:02]} Bxf1 {[%emt 0:00:11]} 21. Rxf1 {[%emt 0:00:14]} Qxd4 {[%emt 0:00:28]} 22. Rb1 {[%emt 0:01:41]} O-O {[%emt 0:14:22]} 23. Qxb4 {[%emt 0:00:41]} Qxe5 {[%emt 0:00:48]} 24. a4 {[%emt 0:01:05]} d4 {[%emt 0:00:38]} 25. Nb5 {[%emt 0:06:55]} d3 {[%emt 0:00:53]} 26. Rd1 {[%emt 0:03:28]} Rc8 {[%emt 0:06:18]} 27. h3 {[%emt 0:02:12]} h6 {[%emt 0:04:53]} 28. Qb3 {[%emt 0:01:49]} d2 {[%emt 0:02:08]} 29. Qb1 {[%emt 0:06:21]} Qe2 {[%emt 0:01:49]} 30. a5 {[%emt 0:02:18]} Rb8 {[%emt 0:01:10]} 31. a6 {[%emt 0:06:09]} Rxb5 {[%emt 0:01:11]} 32. Qa1 {[%emt 0:00:06]} Ra5 {[%emt 0:00:37]} 33. Qxa5 {[%emt 0:03:24]} Qxd1+ {[%emt 0:00:11]} 34. Kh2 {[%emt 0:00:13]} Qe1 {[%emt 0:00:23]} 35. Qd8+ {[%emt 0:00:51]} Kh7 {[%emt 0:00:14]} 36. a7 {[%emt 0:00:25]} Qe5+ {[%emt 0:01:42]} 37. Kg1 {[%emt 0:03:40]} Qa1+ {[%emt 0:01:08]} 38. Kh2 {[%emt 0:00:13]} d1=Q {[%emt 0:01:08]} 39. Qxd1 {[%emt 0:00:17]} Qxd1 {[%emt 0:00:16]} 40. a8=Q {[%emt 0:00:09]} Qd6+ {[%emt 0:00:14]} 41. Kg1 {[%emt 0:00:27]} Qd5 {[%emt 0:00:27]} 42. Qf8 {[%emt 0:00:32]} Qf5 {[%emt 0:00:35]} 43. Qd6 {[%emt 0:00:55]} e5 {[%emt 0:01:04]} 44. Qd5 {[%emt 0:00:36]} Kg6 {[%emt 0:00:47]} 45. Qd6+ {[%emt 0:00:19]} Qe6 {[%emt 0:00:21]} 46. Qd3+ {[%emt 0:00:13]} e4 {[%emt 0:00:13]} 47. Qg3+ {[%emt 0:00:35]} Kh7 {[%emt 0:00:11]} 48. Qf4 {[%emt 0:00:50]} g5 {[%emt 0:00:41]} 49. Qe3 {[%emt 0:00:29]} Kg6 {[%emt 0:00:18]} 50. Qd4 {[%emt 0:00:43]} f6 {[%emt 0:00:31]} 51. Qd8 {[%emt 0:00:46]} e3 {[%emt 0:00:16]} 52. fxe3 {[%emt 0:00:16]} Qxe3+ {[%emt 0:00:08]} 53. Kh2 {[%emt 0:00:09]} Qe5+ {[%emt 0:00:15]} 54. Kh1 {[%emt 0:00:19]} Qe6 {[%emt 0:00:14]} 55. Qd3+ {[%emt 0:00:15]} f5 {[%emt 0:00:23]} 56. Kg1 {[%emt 0:00:29]} h5 {[%emt 0:00:41]} 57. Kh1 {[%emt 0:00:28]} h4 {[%emt 0:00:23]} 58. Qd2 {[%emt 0:00:25]} Kh5 {[%emt 0:01:26]} 59. Qd1+ {[%emt 0:00:57]} g4 {[%emt 0:00:15]} 60. hxg4+ {[%emt 0:01:33]} fxg4 {[%emt 0:00:07]} 61. Qd2 {[%emt 0:01:16]} Qf5 {[%emt 0:00:49]} 62. Qd1 {[%emt 0:00:50]} Qe5 {[%emt 0:01:06]} 63. Qf1 {[%emt 0:00:25]} Kg5 {[%emt 0:00:43]} 64. Qc1+ {[%emt 0:00:27]} Kh5 {[%emt 0:00:50]} 65. Qf1 {[%emt 0:00:07]} Qd5 {[%emt 0:00:35]} 66. Qe1 {[%emt 0:00:37]} Kg5 {[%emt 0:00:38]} 67. Qe3+ {[%emt 0:00:12]} Kf5 {[%emt 0:00:24]} 68. Qf2+ {[%emt 0:00:13]} 1/2-1/2

[Event "23rd Pirc Memorial Juniors 202"]
[Site "Maribor"]
[Date "2020.08.14"]
[Round "6.2"]
[White "Heric, Meta"]
[Black "Kozlovic, Jernej"]
[Result "0-1"]
[ECO "C62"]
[WhiteElo "1287"]
[BlackElo "1445"]
[Annotator "NA"]
[PlyCount "82"]
[EventDate "2020.08.12"]
[EventType "tourn"]
[EventCountry "SLO"]
[SourceTitle "playchess.com"]
[Source "ChessBase"]
[SourceQuality "1"]
[TimeControl "3600+30"]

1. e4 {[%emt 0:00:00]} e5 {[%emt 0:00:00]} 2. Nf3 {[%emt 0:00:00]} Nc6 {[%emt 0:00:00]} 3. Nc3 {[%emt 0:00:03]} Nf6 {[%emt 0:00:00]} 4. Bb5 {[%emt 0:00:07]} d6 {[%emt 0:01:25]} 5. d4 {[%emt 0:00:10]} exd4 {[%emt 0:00:23]} 6. Nxd4 {[%emt 0:00:07]} Bd7 {[%emt 0:00:13]} 7. Bxc6 {[%emt 0:00:09]} bxc6 {[%emt 0:00:53]} 8. Qf3 {[%emt 0:00:12]} c5 {[%emt 0:00:16]} 9. Nf5 {[%emt 0:00:24]} h6 {[%emt 0:00:10]} 10. Bf4 {[%emt 0:00:57]} g6 {[%emt 0:09:35]} 11. e5 {[%emt 0:00:33]} Nh5 {[%emt 0:14:33]} 12. Ng3 {[%emt 0:21:38]} Nxf4 {[%emt 0:01:09]} 13. Qxf4 {[%emt 0:00:29]} Qg5 {[%emt 0:08:24]} 14. Qxg5 {[%emt 0:01:27]} hxg5 {[%emt 0:00:03]} 15. Nd5 {[%emt 0:01:03]} Rb8 {[%emt 0:04:59]} 16. O-O-O {[%emt 0:01:09]} Rb7 {[%emt 0:09:56]} 17. Nf6+ {[%emt 0:40:02]} Kd8 {[%emt 0:00:26]} 18. Nxd7 {[%emt 0:00:00]} Kxd7 {[%emt 0:00:03]} 19. exd6 {[%emt 0:00:00]} Bxd6 {[%emt 0:01:26]} 20. Ne4 {[%emt 0:00:00]} Kc6 {[%emt 0:00:02]} 21. Nxg5 {[%emt 0:00:00]} Bf4+ {[%emt 0:00:03]} 22. Kb1 {[%emt 0:00:00]} Bxg5 {[%emt 0:00:17]} 23. g3 {[%emt 0:00:00]} Re8 {[%emt 0:00:54]} 24. Rhe1 {[%emt 0:00:00]} Rbb8 {[%emt 0:00:10]} 25. f4 {[%emt 0:00:00]} Bf6 {[%emt 0:00:02]} 26. c3 {[%emt 0:00:00]} Rxe1 {[%emt 0:00:24]} 27. Rxe1 {[%emt 0:00:00]} Bxc3 {[%emt 0:00:02]} 28. Re2 {[%emt 0:00:00]} Bd4 {[%emt 0:00:28]} 29. h4 {[%emt 0:00:00]} Kd7 {[%emt 0:00:04]} 30. g4 {[%emt 0:00:00]} Re8 {[%emt 0:00:02]} 31. Rh2 {[%emt 0:00:00]} Re4 {[%emt 0:00:28]} 32. h5 {[%emt 0:00:00]} gxh5 {[%emt 0:00:02]} 33. gxh5 {[%emt 0:00:00]} Rxf4 {[%emt 0:00:01]} 34. h6 {[%emt 0:00:00]} Rf1+ {[%emt 0:00:02]} 35. Kc2 {[%emt 0:00:00]} Rf2+ {[%emt 0:00:01]} 36. Rxf2 {[%emt 0:00:00]} Bxf2 {[%emt 0:00:01]} 37. Kd3 {[%emt 0:00:00]} Bd4 {[%emt 0:00:02]} 38. b4 {[%emt 0:00:00]} Kc6 {[%emt 0:00:01]} 39. Kc4 {[%emt 0:00:00]} Be5 {[%emt 0:00:14]} 40. bxc5 {[%emt 0:00:00]} a5 {[%emt 0:00:11]} 41. h7 {[%emt 0:00:00]} f5 {[%emt 0:00:02]} 0-1

[Event "23rd Pirc Memorial Juniors 202"]
[Site "Maribor"]
[Date "2020.08.14"]
[Round "6.3"]
[White "Drevensek, Doroteja"]
[Black "Javornik, Nik"]
[Result "0-1"]
[ECO "B22"]
[WhiteElo "1381"]
[BlackElo "1786"]
[Annotator "NA"]
[PlyCount "70"]
[EventDate "2020.08.12"]
[EventType "tourn"]
[EventCountry "SLO"]
[SourceTitle "playchess.com"]
[Source "ChessBase"]
[SourceQuality "1"]
[TimeControl "3600+30"]

1. e4 {[%emt 0:00:00]} c5 {[%emt 0:00:00]} 2. c3 {[%emt 0:00:00]} d5 {[%emt 0:00:00]} 3. exd5 {[%emt 0:00:00]} Qxd5 {[%emt 0:00:00]} 4. d4 {[%emt 0:00:22]} Nc6 {[%emt 0:00:00]} 5. Nf3 {[%emt 0:00:19]} Bf5 {[%emt 0:00:00]} 6. c4 {[%emt 0:06:17]} Qe4+ {[%emt 0:04:32]} 7. Be3 {[%emt 0:08:57]} cxd4 {[%emt 0:02:29]} 8. Nxd4 {[%emt 0:01:08]} Nxd4 {[%emt 0:13:06]} 9. Qxd4 {[%emt 0:00:23]} Qxd4 {[%emt 0:01:39]} 10. Bxd4 {[%emt 0:00:03]} Nf6 {[%emt 0:01:07]} 11. Nc3 {[%emt 0:07:22]} a6 {[%emt 0:02:24]} 12. Be2 {[%emt 0:02:19]} e6 {[%emt 0:09:27]} 13. Bf3 {[%emt 0:03:52]} O-O-O {[%emt 0:00:31]} 14. O-O-O {[%emt 0:05:19]} Bd6 {[%emt 0:02:35]} 15. g3 {[%emt 0:11:31]} Kb8 {[%emt 0:02:40]} 16. Bb6 {[%emt 0:02:30]} Rd7 {[%emt 0:00:18]} 17. c5 {[%emt 0:01:44]} Bc7 {[%emt 0:03:26]} 18. Rxd7 {[%emt 0:06:31]} Nxd7 {[%emt 0:00:03]} 19. Bxc7+ {[%emt 0:00:21]} Kxc7 {[%emt 0:00:01]} 20. b4 {[%emt 0:02:01]} Ne5 {[%emt 0:00:36]} 21. Be2 {[%emt 0:01:11]} Nd3+ {[%emt 0:00:05]} 22. Bxd3 {[%emt 0:00:32]} Bxd3 {[%emt 0:00:30]} 23. Rd1 {[%emt 0:00:30]} Rd8 {[%emt 0:00:00]} 24. a3 {[%emt 0:02:14]} g5 {[%emt 0:01:39]} 25. f3 {[%emt 0:00:42]} h5 {[%emt 0:01:26]} 26. Rd2 {[%emt 0:00:57]} Rd7 {[%emt 0:02:59]} 27. a4 {[%emt 0:01:54]} e5 {[%emt 0:01:20]} 28. Ne4 {[%emt 0:01:50]} g4 {[%emt 0:02:43]} 29. Nf2 {[%emt 0:02:17]} Bf5 {[%emt 0:00:43]} 30. fxg4 {[%emt 0:00:53]} hxg4 {[%emt 0:00:02]} 31. Rxd7+ {[%emt 0:01:31]} Bxd7 {[%emt 0:01:37]} 32. a5 {[%emt 0:00:00]} Kc6 {[%emt 0:00:53]} 33. Nd3 {[%emt 0:00:05]} Kd5 {[%emt 0:00:47]} 34. Kd2 {[%emt 0:00:25]} Kd4 {[%emt 0:00:46]} 35. Ke2 {[%emt 0:00:55]} Bb5 {[%emt 0:00:01]} 0-1

[Event "23rd Pirc Memorial Juniors 202"]
[Site "Maribor"]
[Date "2020.08.14"]
[Round "6.4"]
[White "Guid, Taja"]
[Black "Lavrencic, Matic"]
[Result "0-1"]
[ECO "E17"]
[WhiteElo "1705"]
[BlackElo "1902"]
[Annotator "ChessBase"]
[PlyCount "93"]
[EventDate "2020.08.12"]
[EventType "tourn"]
[EventCountry "SLO"]
[SourceTitle "playchess.com"]
[Source "ChessBase"]
[SourceQuality "1"]
[TimeControl "3600+30"]

1. d4 {[%emt 0:00:00]} Nf6 {[%emt 0:00:00]} 2. c4 {[%emt 0:00:00]} e6 {[%emt 0:00:00]} 3. Nf3 {[%emt 0:00:07]} b6 {[%emt 0:00:07]} 4. g3 {[%emt 0:00:36]} Bb7 {[%emt 0:00:39]} 5. Bg2 {[%emt 0:00:19]} Be7 {[%emt 0:00:23]} 6. O-O {[%emt 0:00:15]} O-O {[%emt 0:00:05]} 7. Nbd2 {[%emt 0:05:23]} c5 {[%emt 0:00:47]} 8. e3 {[%emt 0:02:43]} cxd4 {[%emt 0:02:35]} 9. exd4 {[%emt 0:01:13]} Nc6 {[%emt 0:02:11]} 10. b3 {[%emt 0:01:31]} d5 {[%emt 0:01:35]} 11. Bb2 {[%emt 0:00:41]} Rc8 {[%emt 0:00:42]} 12. Ne5 {[%emt 0:05:14]} dxc4 {[%emt 0:01:32]} 13. Ndxc4 {[%emt 0:01:18]} b5 {[%emt 0:02:28]} 14. Ne3 {[%emt 0:10:32]} Qb6 {[%emt 0:02:03]} 15. Nxc6 {[%emt 0:06:24]} Bxc6 {[%emt 0:00:11]} 16. Bxc6 {[%emt 0:02:40]} Qxc6 {[%emt 0:00:07]} 17. Rc1 {[%emt 0:01:14]} Qb7 {[%emt 0:00:42]} 18. Qe2 {[%emt 0:04:15]} Qd7 {[%emt 0:02:56]} 19. Rfd1 {[%emt 0:05:49]} Nd5 {[%emt 0:00:13]} 20. Nxd5 {[%emt 0:00:38]} Qxd5 {[%emt 0:00:10]} 21. Qe5 {[%emt 0:00:30]} Qb7 {[%emt 0:00:21]} 22. h4 {[%emt 0:02:03]} Bf6 {[%emt 0:00:23]} 23. Qe2 {[%emt 0:01:05]} Rfd8 {[%emt 0:01:26]} 24. Rxc8 {[%emt 0:01:39]} Rxc8 {[%emt 0:00:11]} 25. Qd2 {[%emt 0:01:01]} Qe4 {[%emt 0:02:45]} 26. Rc1 {[%emt 0:01:10]} Rd8 {[%emt 0:01:23]} 27. Re1 {[%emt 0:06:25]} Qd5 {[%emt 0:00:08]} 28. Qe2 {[%emt 0:00:24]} a6 {[%emt 0:00:40]} 29. Qe4 {[%emt 0:01:37]} Qxe4 {[%emt 0:05:22]} 30. Rxe4 {[%emt 0:00:07]} g6 {[%emt 0:00:10]} 31. Kg2 {[%emt 0:01:50]} Kf8 {[%emt 0:00:39]} 32. Ba3+ {[%emt 0:01:18]} Ke8 {[%emt 0:00:23]} 33. Bc5 {[%emt 0:01:43]} Bg7 {[%emt 0:01:02]} 34. Kf3 {[%emt 0:01:20]} Rd5 {[%emt 0:00:19]} 35. b4 {[%emt 0:00:37]} Kd7 {[%emt 0:00:29]} 36. Rf4 {[%emt 0:01:27]} f5 {[%emt 0:00:20]} 37. g4 {[%emt 0:00:05]} e5 {[%emt 0:00:27]} 38. dxe5 {[%emt 0:01:06]} Bxe5 {[%emt 0:00:06]} 39. gxf5 {[%emt 0:00:25]} Bxf4 {[%emt 0:00:07]} 40. Kxf4 {[%emt 0:00:04]} Rxf5+ {[%emt 0:00:07]} 41. Kg3 {[%emt 0:00:10]} Ke6 {[%emt 0:00:09]} 42. Be3 {[%emt 0:00:43]} Kd5 {[%emt 0:00:14]} 43. Bc1 {[%emt 0:01:30]} Kc4 {[%emt 0:00:20]} 44. a3 {[%emt 0:00:14]} Rd5 {[%emt 0:00:18]} 45. f3 {[%emt 0:00:23]} Kb3 {[%emt 0:00:22]} 46. Kf2 {[%emt 0:00:09]} Rd1 {[%emt 0:00:25]} 47. Ke2 {[%emt 0:00:49]} 0-1

[Event "23rd Pirc Memorial Juniors 202"]
[Site "Maribor"]
[Date "2020.08.15"]
[Round "7.1"]
[White "Javornik, Lina"]
[Black "Drevensek, Gasper"]
[Result "0-1"]
[ECO "B22"]
[WhiteElo "1330"]
[BlackElo "1446"]
[Annotator "NA"]
[PlyCount "62"]
[EventDate "2020.08.12"]
[EventType "tourn"]
[EventCountry "SLO"]
[SourceTitle "playchess.com"]
[Source "ChessBase"]
[SourceQuality "1"]
[TimeControl "3600+30"]

1. e4 {[%emt 0:00:00]} c5 {[%emt 0:00:00]} 2. c3 {[%emt 0:00:00]} d5 {[%emt 0:00:00]} 3. exd5 {[%emt 0:00:00]} Qxd5 {[%emt 0:00:00]} 4. d4 {[%emt 0:00:01]} Nc6 {[%emt 0:00:02]} 5. Nf3 {[%emt 0:00:26]} Nf6 {[%emt 0:00:14]} 6. Be3 {[%emt 0:00:14]} cxd4 {[%emt 0:00:08]} 7. cxd4 {[%emt 0:00:14]} Bg4 {[%emt 0:00:18]} 8. Nc3 {[%emt 0:00:47]} Qd6 {[%emt 0:01:18]} 9. Be2 {[%emt 0:01:55]} e6 {[%emt 0:00:16]} 10. a3 {[%emt 0:01:21]} Be7 {[%emt 0:01:41]} 11. O-O {[%emt 0:00:37]} O-O {[%emt 0:01:41]} 12. h3 {[%emt 0:02:11]} Bh5 {[%emt 0:03:43]} 13. Qd2 {[%emt 0:02:35]} Rfd8 {[%emt 0:00:46]} 14. Rad1 {[%emt 0:01:35]} a6 {[%emt 0:02:02]} 15. Rfe1 {[%emt 0:02:11]} Bg6 {[%emt 0:02:51]} 16. Kh1 {[%emt 0:17:54]} Rac8 {[%emt 0:04:35]} 17. Nh4 {[%emt 0:03:49]} Ne4 {[%emt 0:02:34]} 18. Nxe4 {[%emt 0:02:51]} Bxe4 {[%emt 0:00:16]} 19. Nf3 {[%emt 0:01:15]} Bf6 {[%emt 0:01:30]} 20. Bf4 {[%emt 0:03:53]} Qd7 {[%emt 0:02:42]} 21. Be3 {[%emt 0:09:17]} Ne7 {[%emt 0:04:50]} 22. Bd3 {[%emt 0:04:05]} Bxf3 {[%emt 0:02:07]} 23. gxf3 {[%emt 0:00:20]} e5 24. dxe5 {[%emt 0:01:35]} Qxh3+ {[%emt 0:00:40]} 25. Kg1 {[%emt 0:00:05]} Bxe5 {[%emt 0:00:35]} 26. f4 {[%emt 0:01:31]} Bf6 {[%emt 0:05:17]} 27. Bxh7+ {[%emt 0:01:15]} Kxh7 {[%emt 0:00:14]} 28. Qxd8 {[%emt 0:00:21]} Rxd8 {[%emt 0:00:06]} 29. Rxd8 {[%emt 0:00:10]} Nf5 {[%emt 0:00:07]} 30. Rd7 {[%emt 0:01:26]} Nxe3 {[%emt 0:00:08]} 31. Rxe3 {[%emt 0:00:50]} Qxd7 {[%emt 0:00:05]} 0-1

[Event "23rd Pirc Memorial Juniors 202"]
[Site "Maribor"]
[Date "2020.08.15"]
[Round "7.2"]
[White "Lavrencic, Matic"]
[Black "Centrih, Aleks"]
[Result "1-0"]
[ECO "C78"]
[WhiteElo "1902"]
[BlackElo "1746"]
[Annotator "ChessBase"]
[PlyCount "75"]
[EventDate "2020.08.12"]
[EventType "tourn"]
[EventCountry "SLO"]
[SourceTitle "playchess.com"]
[Source "ChessBase"]
[SourceQuality "1"]
[TimeControl "3600+30"]

1. e4 {[%emt 0:00:00]} e5 {[%emt 0:00:00]} 2. Nf3 {[%emt 0:00:00]} Nc6 {[%emt 0:00:00]} 3. Bb5 {[%emt 0:00:00]} a6 {[%emt 0:00:00]} 4. Ba4 {[%emt 0:00:00]} Nf6 {[%emt 0:00:00]} 5. O-O {[%emt 0:00:00]} b5 {[%emt 0:00:00]} 6. Bb3 {[%emt 0:00:04]} Bc5 {[%emt 0:00:00]} 7. c3 {[%emt 0:00:15]} d6 {[%emt 0:00:15]} 8. d4 {[%emt 0:00:19]} Bb6 {[%emt 0:00:04]} 9. a4 {[%emt 0:01:02]} Rb8 {[%emt 0:00:06]} 10. a5 {[%emt 0:00:21]} Ba7 {[%emt 0:00:09]} 11. Be3 {[%emt 0:01:35]} exd4 {[%emt 0:15:42]} 12. cxd4 {[%emt 0:00:37]} O-O {[%emt 0:04:45]} 13. Qc1 {[%emt 0:03:15]} Bb7 {[%emt 0:05:11]} 14. d5 {[%emt 0:01:53]} Bxe3 {[%emt 0:00:36]} 15. Qxe3 {[%emt 0:00:10]} Ne7 {[%emt 0:01:38]} 16. Nbd2 {[%emt 0:01:06]} Ng6 {[%emt 0:00:47]} 17. h3 {[%emt 0:01:01]} Re8 {[%emt 0:00:46]} 18. Qd4 {[%emt 0:00:36]} h6 {[%emt 0:03:55]} 19. Rac1 {[%emt 0:01:55]} Qd7 {[%emt 0:02:28]} 20. Rfe1 {[%emt 0:00:36]} c5 {[%emt 0:02:31]} 21. dxc6 {[%emt 0:00:12]} Bxc6 {[%emt 0:00:06]} 22. Rc3 {[%emt 0:06:52]} Bb7 {[%emt 0:06:35]} 23. Rd3 {[%emt 0:02:54]} Rbd8 {[%emt 0:07:01]} 24. Qb4 {[%emt 0:03:43]} Qc7 {[%emt 0:01:55]} 25. g3 {[%emt 0:03:28]} Ne5 {[%emt 0:02:46]} 26. Rc3 {[%emt 0:03:08]} Qd7 {[%emt 0:00:26]} 27. Nxe5 {[%emt 0:05:20]} Rxe5 {[%emt 0:03:38]} 28. g4 {[%emt 0:04:22]} Rde8 {[%emt 0:03:47]} 29. Rce3 {[%emt 0:04:04]} R5e7 {[%emt 0:05:52]} 30. Qd4 {[%emt 0:01:32]} Qc7 {[%emt 0:00:34]} 31. h4 {[%emt 0:02:44]} Qc5 {[%emt 0:03:08]} 32. Qxc5 {[%emt 0:00:09]} dxc5 {[%emt 0:00:06]} 33. g5 {[%emt 0:03:27]} hxg5 {[%emt 0:00:39]} 34. hxg5 {[%emt 0:00:04]} Nd7 {[%emt 0:01:01]} 35. g6 {[%emt 0:03:21]} c4 {[%emt 0:00:26]} 36. gxf7+ {[%emt 0:00:10]} Kxf7 {[%emt 0:00:11]} 37. Ba2 {[%emt 0:03:08]} Nf6 {[%emt 0:00:52]} 38. b3 {[%emt 0:02:33]} 1-0

[Event "23rd Pirc Memorial Juniors 202"]
[Site "Maribor"]
[Date "2020.08.15"]
[Round "7.3"]
[White "Javornik, Nik"]
[Black "Guid, Taja"]
[Result "1/2-1/2"]
[ECO "B48"]
[WhiteElo "1786"]
[BlackElo "1705"]
[Annotator "NA"]
[PlyCount "95"]
[EventDate "2020.08.12"]
[EventType "tourn"]
[EventCountry "SLO"]
[SourceTitle "playchess.com"]
[Source "ChessBase"]
[SourceQuality "1"]
[TimeControl "3600+30"]

1. e4 {[%emt 0:00:00]} c5 {[%emt 0:00:00]} 2. Nf3 {[%emt 0:00:00]} e6 {[%emt 0:00:00]} 3. d4 {[%emt 0:00:00]} cxd4 {[%emt 0:00:00]} 4. Nxd4 {[%emt 0:00:00]} Nc6 {[%emt 0:00:00]} 5. Nc3 {[%emt 0:00:00]} Qc7 {[%emt 0:00:01]} 6. Be3 {[%emt 0:00:42]} a6 {[%emt 0:00:11]} 7. Qd2 {[%emt 0:02:18]} Nf6 {[%emt 0:00:17]} 8. f3 {[%emt 0:00:20]} Ne5 {[%emt 0:01:47]} 9. O-O-O {[%emt 0:04:04]} b5 {[%emt 0:00:22]} 10. g4 {[%emt 0:00:55]} Bb4 {[%emt 0:06:00]} 11. g5 {[%emt 0:03:45]} Nh5 {[%emt 0:01:13]} 12. Kb1 {[%emt 0:03:41]} Bxc3 {[%emt 0:00:49]} 13. Qxc3 {[%emt 0:00:15]} Qxc3 {[%emt 0:00:04]} 14. bxc3 {[%emt 0:00:02]} Bb7 {[%emt 0:00:37]} 15. Be2 {[%emt 0:05:53]} Ng6 {[%emt 0:03:48]} 16. c4 {[%emt 0:03:09]} bxc4 {[%emt 0:02:23]} 17. Bxc4 {[%emt 0:00:03]} Rc8 {[%emt 0:00:30]} 18. Bd3 {[%emt 0:04:42]} Nhf4 {[%emt 0:01:54]} 19. Nb3 {[%emt 0:03:07]} Nxd3 {[%emt 0:06:22]} 20. cxd3 {[%emt 0:01:12]} d6 {[%emt 0:02:10]} 21. Kb2 {[%emt 0:05:22]} O-O {[%emt 0:01:46]} 22. Rhf1 {[%emt 0:03:16]} Rfd8 {[%emt 0:10:00]} 23. f4 {[%emt 0:02:44]} Ne7 {[%emt 0:09:36]} 24. Rc1 {[%emt 0:04:09]} Nc6 {[%emt 0:01:33]} 25. Bb6 {[%emt 0:01:42]} Re8 {[%emt 0:01:10]} 26. Rc3 {[%emt 0:01:23]} e5 {[%emt 0:04:06]} 27. f5 {[%emt 0:00:54]} f6 {[%emt 0:01:25]} 28. h4 {[%emt 0:02:24]} Ne7 {[%emt 0:00:35]} 29. Rfc1 {[%emt 0:01:49]} d5 {[%emt 0:02:23]} 30. Rxc8 {[%emt 0:02:22]} Nxc8 {[%emt 0:01:00]} 31. Nc5 {[%emt 0:02:43]} Nxb6 {[%emt 0:02:28]} 32. Nxb7 {[%emt 0:00:02]} Rb8 {[%emt 0:00:44]} 33. Rc7 {[%emt 0:01:29]} Na8 {[%emt 0:00:46]} 34. Rd7 {[%emt 0:00:40]} Nb6 {[%emt 0:00:41]} 35. Rd8+ {[%emt 0:00:01]} Rxd8 {[%emt 0:00:08]} 36. Nxd8 {[%emt 0:00:01]} dxe4 {[%emt 0:00:56]} 37. dxe4 {[%emt 0:00:02]} Na4+ {[%emt 0:00:24]} 38. Kb3 {[%emt 0:05:56]} Nc5+ {[%emt 0:00:15]} 39. Kb4 {[%emt 0:00:56]} Nxe4 {[%emt 0:00:10]} 40. gxf6 {[%emt 0:00:20]} gxf6 {[%emt 0:00:31]} 41. a4 {[%emt 0:00:16]} Nd6 {[%emt 0:00:39]} 42. Ka5 {[%emt 0:00:48]} Nxf5 {[%emt 0:00:40]} 43. Ne6 {[%emt 0:01:27]} Kf7 {[%emt 0:00:29]} 44. Nc5 {[%emt 0:00:15]} Nxh4 {[%emt 0:11:07]} 45. Kxa6 {[%emt 0:07:21]} f5 {[%emt 0:00:30]} 46. a5 {[%emt 0:00:30]} f4 {[%emt 0:00:30]} 47. Kb7 f3 {[%emt 0:00:30]} 48. Ne4 1/2-1/2

[Event "23rd Pirc Memorial Juniors 202"]
[Site "Maribor"]
[Date "2020.08.15"]
[Round "7.4"]
[White "Kozlovic, Jernej"]
[Black "Drevensek, Doroteja"]
[Result "1-0"]
[ECO "B13"]
[WhiteElo "1445"]
[BlackElo "1381"]
[Annotator "NA"]
[PlyCount "91"]
[EventDate "2020.08.12"]
[EventType "tourn"]
[EventCountry "SLO"]
[SourceTitle "playchess.com"]
[Source "ChessBase"]
[SourceQuality "1"]
[TimeControl "3600+30"]

1. e4 {[%emt 0:00:00]} c6 {[%emt 0:00:00]} 2. d4 {[%emt 0:00:00]} d5 {[%emt 0:00:00]} 3. exd5 {[%emt 0:00:00]} cxd5 {[%emt 0:00:00]} 4. Bd3 {[%emt 0:00:00]} Nc6 {[%emt 0:00:00]} 5. c3 {[%emt 0:00:00]} Nf6 {[%emt 0:00:03]} 6. Bf4 {[%emt 0:00:00]} Bg4 {[%emt 0:00:51]} 7. Qb3 {[%emt 0:00:00]} Qc8 {[%emt 0:00:41]} 8. Nd2 {[%emt 0:00:04]} e6 {[%emt 0:01:00]} 9. Ngf3 {[%emt 0:00:12]} a6 {[%emt 0:01:25]} 10. O-O {[%emt 0:01:09]} Be7 {[%emt 0:01:20]} 11. Ne5 {[%emt 0:04:06]} Bh5 {[%emt 0:02:04]} 12. Ndf3 {[%emt 0:03:55]} O-O {[%emt 0:04:36]} 13. Rfe1 {[%emt 0:01:24]} Re8 {[%emt 0:04:55]} 14. h3 {[%emt 0:03:02]} Bg6 {[%emt 0:08:00]} 15. Nxg6 {[%emt 0:01:49]} hxg6 {[%emt 0:00:02]} 16. Ne5 {[%emt 0:02:56]} Nxe5 {[%emt 0:05:00]} 17. Bxe5 {[%emt 0:01:29]} Qc6 {[%emt 0:00:44]} 18. Qc2 {[%emt 0:02:18]} Bd6 {[%emt 0:00:41]} 19. Bxf6 {[%emt 0:01:11]} gxf6 {[%emt 0:00:20]} 20. Bxg6 {[%emt 0:00:07]} fxg6 {[%emt 0:05:44]} 21. Qxg6+ {[%emt 0:00:08]} Kh8 {[%emt 0:00:17]} 22. Qh6+ {[%emt 0:00:30]} Kg8 {[%emt 0:00:20]} 23. Qg6+ {[%emt 0:00:01]} Kh8 {[%emt 0:00:13]} 24. Qxf6+ {[%emt 0:00:03]} Kh7 {[%emt 0:02:27]} 25. Re2 {[%emt 0:01:42]} Re7 {[%emt 0:03:54]} 26. Rae1 {[%emt 0:00:18]} Rae8 {[%emt 0:00:34]} 27. f4 {[%emt 0:03:17]} Qd7 {[%emt 0:02:08]} 28. Re3 {[%emt 0:01:30]} Rf7 {[%emt 0:01:01]} 29. Qh4+ {[%emt 0:00:39]} Kg8 {[%emt 0:00:04]} 30. Rxe6 {[%emt 0:18:22]} Rxe6 {[%emt 0:02:36]} 31. Qg4+ {[%emt 0:00:17]} Rg7 {[%emt 0:00:14]} 32. Qxe6+ {[%emt 0:00:20]} Qxe6 {[%emt 0:00:02]} 33. Rxe6 {[%emt 0:00:02]} Bxf4 {[%emt 0:00:37]} 34. g4 {[%emt 0:02:08]} Bc1 {[%emt 0:12:18]} 35. Re2 {[%emt 0:01:08]} Kf8 {[%emt 0:01:39]} 36. b3 {[%emt 0:01:24]} Re7 {[%emt 0:01:42]} 37. Kf2 {[%emt 0:02:46]} Rxe2+ {[%emt 0:02:01]} 38. Kxe2 {[%emt 0:00:05]} Bg5 {[%emt 0:00:32]} 39. c4 {[%emt 0:01:07]} Bf6 {[%emt 0:01:54]} 40. cxd5 {[%emt 0:08:42]} Bxd4 {[%emt 0:00:30]} 41. Kd3 {[%emt 0:00:03]} Bc5 {[%emt 0:02:39]} 42. Ke4 {[%emt 0:00:25]} Bd6 {[%emt 0:02:16]} 43. Kf5 {[%emt 0:00:08]} Kf7 {[%emt 0:00:42]} 44. h4 {[%emt 0:00:11]} Bf8 {[%emt 0:01:37]} 45. g5 {[%emt 0:00:18]} Ke7 {[%emt 0:00:48]} 46. h5 {[%emt 0:01:08]} 1-0